bitfinex/quotes_BTCUSD_20241101
["timestamp","ask_amount","ask_price","bid_price","bid_amount"]
[1730485802243,0.90267767,69501.0,69500.0,1.09706534]
[1730485802447,1.02275402,69501.0,69500.0,0.59458193]
[1730485802649,0.88867767,69501.0,69500.0,0.56580493]
[1730485802842,0.90267767,69501.0,69500.0,0.45069693]
[1730485803362,0.98132755,69501.0,69500.0,0.45069693]
[1730485803656,0.99532755,69501.0,69500.0,0.45069693]
[1730485803830,0.99532755,69501.0,69500.0,0.36436593]
[1730485804293,0.92520343,69501.0,69500.0,0.36436593]
[1730485804519,0.92520343,69501.0,69500.0,0.30681193]
[1730485804765,0.92520343,69501.0,69500.0,0.22047993]
[1730485805003,0.92520343,69501.0,69487.0,0.21553582]
[1730485805004,0.1,69500.0,69487.0,0.21553582]
[1730485805205,0.64178535,69488.0,69487.0,0.21553582]
[1730485805383,0.507709,69488.0,69487.0,0.21553582]
[1730485805731,0.243924,69481.0,69480.0,0.21553582]
[1730485805941,0.37800035,69481.0,69480.0,0.21553582]
[1730485806173,0.243924,69481.0,69480.0,0.21553582]
[1730485806383,0.243932,69477.0,69476.0,0.0815]
[1730485807222,0.287884,69473.0,69467.0,0.0788]
[1730485807441,0.143944,69472.0,69468.0,0.13845525]
[1730485807633,0.243938,69475.0,69468.0,0.13845525]
[1730485807904,0.1,69475.0,69468.0,0.18530817]
[1730485808157,0.25816306,69500.0,69478.0,0.023]
[1730485808388,0.21553582,69482.0,69479.0,0.21725525]
[1730485808609,0.50334082,69492.0,69479.0,0.21725525]
[1730485808828,0.143905,69490.0,69479.0,0.21725525]
[1730485809040,0.21553582,69491.0,69481.0,0.13845525]
[1730485809244,0.1,69490.0,69481.0,0.13845525]
[1730485810132,0.1,69482.0,69481.0,0.13845525]
[1730485810334,0.1,69482.0,69457.0,0.001628]
[1730485810335,0.143942,69472.0,69471.0,0.0759]
[1730485810539,0.143942,69472.0,69471.0,0.35399107]
[1730485810540,0.243942,69472.0,69471.0,0.35399107]
[1730485810749,0.243942,69472.0,69471.0,0.13845525]
[1730485812960,0.245942,69472.0,69471.0,0.13945525]
[1730485819136,0.002,69472.0,69471.0,0.13945525]
[1730485819365,0.002,69472.0,69471.0,0.14109725]
[1730485819562,0.245942,69472.0,69471.0,0.14109725]
[1730485819782,0.102,69472.0,69471.0,0.14109725]
[1730485820887,0.002,69472.0,69471.0,0.14109725]
[1730485821530,0.102,69472.0,69471.0,0.14109725]
[1730485822378,0.1,69481.0,69471.0,0.14109725]
[1730485822586,0.1,69481.0,69473.0,0.13407635]
[1730485822826,0.1,69481.0,69474.0,0.14133365]
[1730485823237,0.1,69479.0,69474.0,0.13845525]
[1730485823888,0.143936,69475.0,69474.0,0.13845525]
[1730485824557,0.143936,69475.0,69471.0,0.001642]
[1730485824558,0.243942,69472.0,69471.0,0.001642]
[1730485824791,0.243942,69472.0,69471.0,0.14009725]
[1730485825208,0.243942,69472.0,69471.0,0.001642]
[1730485825512,0.37801835,69472.0,69471.0,0.001642]
[1730485825756,0.69184154,69472.0,69471.0,0.001642]
[1730485825992,0.96437314,69472.0,69471.0,1e-06]
[1730485826199,0.98267465,69472.0,69471.0,1e-06]
[1730485826840,0.99667465,69472.0,69471.0,1e-06]
[1730485827109,0.8758319,69472.0,69471.0,1e-06]
[1730485827324,0.243957,69465.0,69464.0,0.21553582]
[1730485827566,0.37803335,69465.0,69464.0,0.21553582]
[1730485827782,0.243971,69458.0,69457.0,0.21716382]
[1730485828220,0.243971,69458.0,69457.0,0.001628]
[1730485829981,0.243971,69458.0,69457.0,0.003628]
[1730485830205,0.28869419,69458.0,69457.0,0.003628]
[1730485830663,0.28869419,69458.0,69457.0,0.001628]
[1730485831540,0.28869419,69458.0,69435.0,0.21553582]
[1730485831541,0.37805635,69454.0,69443.0,0.21553582]
[1730485832470,0.5610064,69454.0,69443.0,0.21553582]
[1730485832705,0.66237034,69454.0,69443.0,0.21553582]
[1730485832926,0.63164715,69454.0,69443.0,0.21553582]
[1730485833395,0.5890064,69454.0,69443.0,0.21553582]
[1730485835274,0.5890064,69454.0,69435.0,0.21553582]
[1730485835473,0.244007,69441.0,69435.0,0.21553582]
[1730485835691,0.37808335,69441.0,69435.0,0.21553582]
[1730485835899,0.244007,69441.0,69435.0,0.21553582]
[1730485836311,0.244007,69441.0,69437.0,0.1907]
[1730485836514,0.244007,69441.0,69440.0,0.083328]
[1730485838188,0.244007,69441.0,69440.0,0.22178325]
[1730485839271,0.144002,69444.0,69440.0,0.22178325]
[1730485839512,0.143995,69447.0,69441.0,0.13845525]
[1730485839756,0.21553582,69447.0,69441.0,0.14133508]
[1730485839965,0.35953082,69447.0,69441.0,0.14133508]
[1730485840167,0.143997,69446.0,69441.0,0.14133508]
[1730485840342,0.143997,69446.0,69441.0,0.13845525]
[1730485840580,0.001,69444.0,69441.0,0.13845525]
[1730485841044,0.015,69444.0,69441.0,0.13845525]
[1730485841598,0.001,69444.0,69441.0,0.13845525]
[1730485842076,0.001,69444.0,69441.0,0.13945525]
[1730485842286,0.001,69444.0,69441.0,0.13845525]
[1730485842699,0.146002,69444.0,69441.0,0.13945525]
[1730485842907,0.146002,69444.0,69441.0,0.14109925]
[1730485844288,0.002,69444.0,69441.0,0.14109925]
[1730485846113,0.002,69444.0,69443.0,0.16145525]
[1730485846339,0.002,69444.0,69443.0,0.24055525]
[1730485846521,0.002,69444.0,69443.0,0.38455725]
[1730485846873,0.001,69444.0,69443.0,0.38455725]
[1730485847080,0.243984,69452.0,69443.0,0.38455725]
[1730485847286,0.243984,69452.0,69443.0,0.38655725]
[1730485847818,0.144,69444.0,69443.0,0.21955525]
[1730485848045,0.287976,69450.0,69443.0,0.21855525]
[1730485848378,0.144,69444.0,69443.0,0.21855525]
[1730485848555,0.144,69444.0,69443.0,0.21755525]
[1730485848970,0.431991,69446.0,69443.0,0.21755525]
[1730485849287,0.143998,69445.0,69443.0,0.21755525]
[1730485849888,0.1,69452.0,69443.0,0.21755525]
[1730485850112,0.1,69452.0,69443.0,0.22143498]
[1730485850113,0.14399,69449.0,69443.0,0.22143498]
[1730485850310,0.1,69455.0,69446.0,0.143994]
[1730485850480,0.31553582,69455.0,69447.0,0.13845525]
[1730485850697,0.1,69455.0,69447.0,0.13845525]
[1730485850941,0.10205834,69456.0,69455.0,0.222978]
[1730485851137,0.000822,69458.0,69455.0,0.21745525]
[1730485851340,0.000822,69458.0,69457.0,0.143973]
[1730485851549,0.000822,69458.0,69457.0,0.28242825]
[1730485851722,0.000822,69458.0,69457.0,0.13845525]
[1730485851936,0.000822,69458.0,69457.0,0.39381037]
[1730485852139,0.000822,69458.0,69457.0,0.39093129]
[1730485852576,0.000822,69458.0,69457.0,0.56802825]
[1730485852789,0.001822,69458.0,69457.0,0.57202825]
[1730485852967,0.002822,69458.0,69457.0,0.57202825]
[1730485853568,0.001822,69458.0,69457.0,0.56802825]
[1730485853994,0.001822,69458.0,69457.0,0.57202825]
[1730485854199,0.001822,69458.0,69457.0,0.70023011]
[1730485854391,0.002822,69458.0,69457.0,0.92476593]
[1730485854624,0.002822,69458.0,69457.0,0.70923011]
[1730485857995,0.002822,69458.0,69457.0,0.58102825]
[1730485860694,0.002822,69458.0,69457.0,0.79656407]
[1730485860901,0.002822,69458.0,69457.0,0.58102825]
[1730485861899,0.002822,69458.0,69457.0,0.43705525]
[1730485862106,0.001822,69458.0,69457.0,0.42805525]
[1730485862234,0.000822,69458.0,69457.0,0.42405525]
[1730485862442,0.000822,69458.0,69457.0,0.50965488]
[1730485862638,0.002822,69458.0,69457.0,0.51865488]
[1730485863045,0.001822,69458.0,69457.0,0.42405525]
[1730485863245,0.000822,69458.0,69457.0,0.13845525]
[1730485863673,0.001822,69458.0,69457.0,0.14345525]
[1730485864104,0.001822,69458.0,69457.0,0.16645525]
[1730485864280,0.001822,69458.0,69457.0,0.50162825]
[1730485864646,0.001822,69458.0,69457.0,0.61554789]
[1730485864784,0.000822,69458.0,69457.0,0.62054789]
[1730485865192,0.000822,69458.0,69457.0,0.70174789]
[1730485865453,0.000822,69458.0,69457.0,0.70874789]
[1730485865658,0.000822,69458.0,69457.0,0.92428371]
[1730485865849,0.000822,69458.0,69457.0,0.70874789]
[1730485866049,0.000822,69458.0,69457.0,0.70174789]
[1730485866713,0.000822,69458.0,69457.0,0.71174789]
[1730485866944,0.000822,69458.0,69457.0,0.59782825]
[1730485867148,0.000822,69458.0,69457.0,0.45385525]
[1730485867363,0.000822,69458.0,69457.0,0.59782825]
[1730485867591,0.000822,69458.0,69457.0,0.58782825]
[1730485867830,0.000822,69458.0,69457.0,0.59182825]
[1730485868058,0.001822,69458.0,69457.0,0.59182825]
[1730485868269,0.002822,69458.0,69457.0,0.72201031]
[1730485868503,0.002822,69458.0,69457.0,0.73301031]
[1730485868504,0.003822,69458.0,69457.0,0.73301031]
[1730485868709,0.003822,69458.0,69457.0,0.71901031]
[1730485868710,0.002822,69458.0,69457.0,0.71901031]
[1730485869349,0.003822,69458.0,69457.0,0.73101031]
[1730485872164,0.21553582,69477.0,69457.0,0.73101031]
[1730485872165,0.21553582,69477.0,69476.0,0.219034]
[1730485872292,0.22889204,69477.0,69476.0,0.17923865]
[1730485872492,0.22889204,69477.0,69476.0,0.13845525]
[1730485872712,0.01335622,69477.0,69476.0,0.13845525]
[1730485874222,0.01335622,69477.0,69476.0,0.14545525]
[1730485874625,0.15728822,69477.0,69476.0,0.13845525]
[1730485875087,0.15728822,69477.0,69476.0,0.14345525]
[1730485875518,0.15728894,69477.0,69476.0,0.14345525]
[1730485876217,0.15728894,69477.0,69476.0,0.14545525]
[1730485876440,0.15728894,69477.0,69476.0,0.13845525]
[1730485877080,0.01335694,69477.0,69476.0,0.23480078]
[1730485877299,0.1,69482.0,69476.0,0.23767911]
[1730485877509,0.1,69482.0,69477.0,0.13845525]
[1730485877738,0.000821,69501.0,69481.0,0.13845525]
[1730485877952,0.143907,69489.0,69482.0,0.02587794]
[1730485878174,0.143907,69489.0,69483.0,0.13845525]
[1730485878396,0.287794,69495.0,69483.0,0.13845525]
[1730485878623,0.000821,69500.0,69491.0,0.13845525]
[1730485878908,0.21553582,69499.0,69492.0,0.00287759]
[1730485879138,0.000821,69500.0,69496.0,0.13845525]
[1730485879371,0.000821,69500.0,69498.0,0.023]
[1730485879592,0.000821,69500.0,69493.0,0.16161727]
[1730485879593,0.01337495,69499.0,69494.0,0.023]
[1730485879813,0.01337495,69499.0,69496.0,0.16145525]
[1730485880044,0.000821,69500.0,69498.0,0.13845525]
[1730485880264,0.000821,69500.0,69499.0,0.16433249]
[1730485880483,0.01418583,69500.0,69499.0,0.16433249]
[1730485880703,0.01418583,69500.0,69499.0,0.34462049]
[1730485880915,0.01418583,69500.0,69499.0,0.20073449]
[1730485881137,0.01418583,69500.0,69499.0,0.34462049]
[1730485881576,0.01418583,69500.0,69499.0,0.20973449]
[1730485882017,0.01418583,69500.0,69499.0,0.21873449]
[1730485882457,0.01416181,69500.0,69499.0,0.20973449]
[1730485882725,0.01416181,69500.0,69499.0,0.18345525]
[1730485883180,0.01416181,69500.0,69499.0,0.17445525]
[1730485883426,0.01416181,69500.0,69499.0,0.18645525]
[1730485883861,0.000821,69500.0,69499.0,0.18645525]
[1730485884923,0.000821,69500.0,69499.0,0.33034125]
[1730485885168,0.000821,69500.0,69499.0,0.4473982]
[1730485885810,0.000821,69500.0,69499.0,0.18645525]
[1730485886026,0.000821,69500.0,69499.0,0.17445525]
[1730485886529,0.000821,69500.0,69499.0,0.16545525]
[1730485886741,0.01414035,69500.0,69499.0,0.16545525]
[1730485886973,0.15802435,69500.0,69499.0,0.15145525]
[1730485887184,0.15802435,69500.0,69499.0,0.15045525]
[1730485887414,0.01414035,69500.0,69499.0,0.16445525]
[1730485887617,0.01414035,69500.0,69499.0,0.15045525]
[1730485887835,0.01414035,69500.0,69499.0,0.13845525]
[1730485888060,0.15802435,69500.0,69499.0,0.15145525]
[1730485888524,0.15802435,69500.0,69499.0,0.15745525]
[1730485889172,0.15802435,69500.0,69499.0,0.16945525]
[1730485889620,0.15802435,69500.0,69499.0,0.15745525]
[1730485889839,0.144705,69500.0,69499.0,0.15745525]
[1730485890054,0.144705,69500.0,69499.0,0.16345525]
[1730485890303,0.17132969,69500.0,69499.0,0.16345525]
[1730485890520,0.15801734,69500.0,69499.0,0.16345525]
[1730485891217,0.15801782,69500.0,69499.0,0.16345525]
[1730485893582,0.15801782,69500.0,69499.0,0.17980078]
[1730485893583,0.15801946,69500.0,69499.0,0.17980078]
[1730485893799,0.01413546,69500.0,69499.0,0.17980078]
[1730485894492,0.000821,69500.0,69499.0,0.20280078]
[1730485894735,0.01413829,69500.0,69499.0,0.20280078]
[1730485894954,0.01413829,69500.0,69499.0,0.28387797]
[1730485895177,0.01413829,69500.0,69499.0,0.28100078]
[1730485897199,0.000821,69500.0,69499.0,0.28100078]
[1730485897613,0.01413829,69500.0,69499.0,0.28100078]
[1730485897834,0.000821,69500.0,69499.0,0.26200078]
[1730485898045,0.01413829,69500.0,69499.0,0.26200078]
[1730485898263,0.01413829,69500.0,69499.0,0.26800078]
[1730485898507,0.01413829,69500.0,69499.0,0.27900078]
[1730485898941,0.01413829,69500.0,69499.0,0.18445525]
[1730485899184,0.15802229,69500.0,69499.0,0.16145525]
[1730485900268,0.144705,69500.0,69499.0,0.16145525]
[1730485900504,0.15803952,69500.0,69499.0,0.16145525]
[1730485900730,0.144705,69500.0,69499.0,0.16145525]
[1730485901166,0.1580448,69500.0,69499.0,0.16145525]
[1730485901604,0.0141608,69500.0,69499.0,0.16145525]
[1730485901890,0.1580448,69500.0,69499.0,0.16145525]
[1730485902107,0.0141608,69500.0,69499.0,0.16145525]
[1730485902326,0.0141608,69500.0,69499.0,0.18445525]
[1730485902545,0.0141608,69500.0,69499.0,0.21630841]
[1730485903225,0.0141608,69500.0,69499.0,0.18445525]
[1730485904554,0.01418442,69500.0,69499.0,0.18445525]
[1730485905890,0.01418442,69500.0,69499.0,0.26635525]
[1730485906113,0.01418442,69500.0,69499.0,0.4004316]
[1730485906799,0.01418442,69500.0,69499.0,0.18445525]
[1730485907007,0.01418442,69500.0,69499.0,0.23568841]
[1730485907681,0.000821,69500.0,69499.0,0.23568841]
[1730485908738,0.01421741,69500.0,69499.0,0.23568841]
[1730485908962,0.01421741,69500.0,69499.0,0.36976476]
[1730485909607,0.01421741,69500.0,69499.0,0.51365076]
[1730485909816,6.68e-05,69500.0,69499.0,0.51365076]
[1730485910231,6.68e-05,69500.0,69499.0,0.59415076]
[1730485911100,6.68e-05,69500.0,69499.0,0.77805076]
[1730485911510,0.000821,69501.0,69500.0,0.023]
[1730485911716,0.000821,69501.0,69500.0,0.44381655]
[1730485913102,0.000821,69501.0,69500.0,0.45781655]
[1730485913326,0.000821,69501.0,69500.0,0.53391655]
[1730485913984,0.000821,69501.0,69500.0,0.8484929]
[1730485914230,0.00082,69527.0,69513.0,0.166857]
[1730485914231,0.21553582,69514.0,69513.0,0.166857]
[1730485914441,0.00082,69527.0,69520.0,0.143843]
[1730485914659,0.00082,69527.0,69523.0,0.2955316]
[1730485914872,0.00082,69527.0,69524.0,0.023]
[1730485915088,0.00082,69527.0,69526.0,0.16145525]
[1730485915309,0.00082,69527.0,69526.0,0.19100841]
[1730485915744,0.00082,69527.0,69526.0,0.19388455]
[1730485916164,0.00082,69527.0,69526.0,0.19488455]
[1730485916384,0.00082,69527.0,69526.0,0.33683941]
[1730485917540,0.00082,69527.0,69526.0,0.19300841]
[1730485919078,0.14382,69531.0,69527.0,0.023]
[1730485919289,0.143824,69529.0,69528.0,0.13845525]
[1730485919506,0.143824,69529.0,69528.0,0.16145525]
[1730485919725,0.143824,69529.0,69528.0,0.13845525]
[1730485921720,0.15717012,69529.0,69528.0,0.13845525]
[1730485922150,0.143824,69529.0,69528.0,0.13845525]
[1730485922611,0.15716948,69529.0,69528.0,0.13845525]
[1730485922822,0.15716948,69529.0,69528.0,0.15230078]
[1730485923470,0.15716948,69529.0,69528.0,0.13845525]
[1730485925010,0.01334548,69529.0,69528.0,0.16145525]
[1730485925920,0.287621,69536.0,69529.0,0.023]
[1730485926170,0.143817,69533.0,69530.0,0.13845525]
[1730485926406,0.01334376,69532.0,69531.0,0.023]
[1730485926636,0.01334376,69532.0,69531.0,0.16145525]
[1730485926861,0.15716176,69532.0,69531.0,0.16145525]
[1730485927291,0.01334376,69532.0,69531.0,0.16145525]
[1730485927537,0.01334376,69532.0,69531.0,0.17770078]
[1730485927758,0.01334376,69532.0,69531.0,0.16145525]
[1730485927982,0.00834376,69532.0,69531.0,0.16245525]
[1730485928406,0.00834376,69532.0,69531.0,0.16345525]
[1730485929288,0.00834376,69532.0,69531.0,0.10845525]
[1730485929520,0.000821,69533.0,69531.0,0.10845525]
[1730485929763,0.000821,69533.0,69532.0,0.13845525]
[1730485931370,0.000821,69533.0,69532.0,0.13945525]
[1730485931617,0.000821,69533.0,69532.0,0.16145525]
[1730485932875,0.000821,69533.0,69532.0,0.16433113]
[1730485934514,0.000821,69533.0,69532.0,0.13845525]
[1730485934515,0.144637,69533.0,69532.0,0.13845525]
[1730485934746,0.000821,69533.0,69532.0,0.15246498]
[1730485935590,0.000821,69533.0,69532.0,0.13845525]
[1730485936039,0.144637,69533.0,69532.0,0.13845525]
[1730485936485,0.000821,69533.0,69532.0,0.13845525]
[1730485936723,0.144637,69533.0,69532.0,0.13845525]
[1730485940019,0.15801085,69533.0,69532.0,0.13845525]
[1730485940484,0.000821,69533.0,69532.0,0.13845525]
[1730485940731,0.01420096,69533.0,69532.0,0.17850529]
[1730485940974,0.01420096,69533.0,69532.0,0.35900529]
[1730485941208,0.21635082,69551.0,69532.0,0.43302918]
[1730485941456,0.21553582,69544.0,69543.0,0.13845525]
[1730485941693,0.143792,69545.0,69543.0,0.13845525]
[1730485941912,0.287574,69548.0,69543.0,0.13845525]
[1730485942160,0.14379,69546.0,69543.0,0.15230078]
[1730485942612,0.287574,69548.0,69543.0,0.15230078]
[1730485942826,0.01337519,69546.0,69543.0,0.15230078]
[1730485943039,0.01337519,69545.0,69543.0,0.15230078]
[1730485943247,0.01337519,69544.0,69543.0,0.15230078]
[1730485943674,0.01337519,69544.0,69543.0,0.30937713]
[1730485943908,0.01337519,69544.0,69543.0,0.31037713]
[1730485944123,0.01337605,69544.0,69543.0,0.45417213]
[1730485944341,0.01337605,69544.0,69543.0,0.45517213]
[1730485944823,0.01337605,69544.0,69543.0,0.45417213]
[1730485945274,0.01337605,69544.0,69543.0,0.45317213]
[1730485946420,0.000815,69547.0,69543.0,0.45317213]
[1730485946421,0.000815,69547.0,69546.0,0.143789]
[1730485946631,0.000815,69547.0,69546.0,0.50681942]
[1730485946884,0.000815,69547.0,69546.0,0.50394425]
[1730485948598,0.000815,69547.0,69546.0,0.50494425]
[1730485949036,0.000815,69547.0,69546.0,0.50394425]
[1730485949254,0.000815,69547.0,69546.0,0.64342155]
[1730485949464,0.000815,69547.0,69546.0,0.64742155]
[1730485949911,0.000815,69547.0,69546.0,0.65142155]
[1730485950338,0.000815,69547.0,69546.0,0.30893255]
[1730485950558,0.000815,69547.0,69546.0,0.17045525]
[1730485953249,0.01416081,69547.0,69546.0,0.31424425]
[1730485953586,0.01416081,69547.0,69546.0,0.17045525]
[1730485954673,0.000815,69547.0,69546.0,0.17045525]
[1730485954921,0.000815,69547.0,69546.0,0.24563403]
[1730485954922,0.01416767,69547.0,69546.0,0.24563403]
[1730485955133,0.000815,69547.0,69546.0,0.24563403]
[1730485955349,0.01416735,69547.0,69546.0,0.24563403]
[1730485956257,0.1579551,69547.0,69546.0,0.14745525]
[1730485956480,0.0141681,69547.0,69546.0,0.14745525]
[1730485956912,0.1579551,69547.0,69546.0,0.14745525]
[1730485957124,0.0141681,69547.0,69546.0,0.14745525]
[1730485958490,0.1579551,69547.0,69546.0,0.14745525]
[1730485958720,0.1579551,69547.0,69546.0,0.16220078]
[1730485958958,0.01417326,69547.0,69546.0,0.16220078]
[1730485959176,0.15796026,69547.0,69546.0,0.14745525]
[1730485960305,0.15296026,69547.0,69546.0,0.14745525]
[1730485960996,0.00917326,69547.0,69546.0,0.17045525]
[1730485961256,0.00917326,69547.0,69546.0,0.14745525]
[1730485961478,0.15296026,69547.0,69546.0,0.14745525]
[1730485961695,0.15296026,69547.0,69546.0,0.16220078]
[1730485962133,0.15296026,69547.0,69546.0,0.14745525]
[1730485962376,0.420687,69547.0,69546.0,0.14745525]
[1730485962570,0.420687,69547.0,69546.0,0.13845525]
[1730485963035,0.287583,69545.0,69529.0,0.21553582]
[1730485963276,0.287583,69545.0,69537.0,0.21553582]
[1730485963277,0.143806,69538.0,69537.0,0.21553582]
[1730485963521,0.221006,69538.0,69537.0,0.13845525]
[1730485963741,0.411406,69538.0,69537.0,0.13845525]
[1730485964430,0.411406,69538.0,69531.0,0.21553582]
[1730485964431,0.2676,69538.0,69531.0,0.21553582]
[1730485964662,0.143839,69522.0,69514.0,0.13407635]
[1730485964932,0.143839,69522.0,69510.0,0.287725]
[1730485965162,0.143837,69523.0,69511.0,0.21553582]
[1730485965381,0.28767,69524.0,69512.0,0.14386]
[1730485965601,0.143838,69523.0,69513.0,0.09348538]
[1730485965821,0.143838,69523.0,69513.0,0.23734238]
[1730485966049,0.144839,69522.0,69521.0,0.014]
[1730485966317,0.002,69522.0,69521.0,0.028]
[1730485966531,0.002,69522.0,69521.0,0.014]
[1730485966532,0.145839,69522.0,69521.0,0.014]
[1730485967189,0.001,69522.0,69514.0,0.023]
[1730485967431,0.001,69522.0,69521.0,0.13845525]
[1730485967742,0.21553582,69536.0,69524.0,0.023]
[1730485967959,0.21553582,69536.0,69534.0,0.13845525]
[1730485968407,0.143805,69539.0,69534.0,0.13845525]
[1730485969580,0.143805,69539.0,69534.0,0.14045525]
[1730485969795,0.287595,69542.0,69534.0,0.13845525]
[1730485970015,0.143812,69535.0,69534.0,0.14045525]
[1730485970700,0.143812,69535.0,69534.0,0.14345525]
[1730485971139,0.143812,69535.0,69534.0,0.14045525]
[1730485971355,0.28762,69536.0,69534.0,0.15780078]
[1730485971605,0.143812,69535.0,69534.0,0.15780078]
[1730485971817,0.287607,69540.0,69534.0,0.15580078]
[1730485972034,0.143808,69537.0,69534.0,0.15580078]
[1730485972247,0.01335235,69536.0,69535.0,0.01558008]
[1730485972476,0.15716235,69536.0,69535.0,0.15403533]
[1730485972987,0.01335235,69536.0,69535.0,0.15403533]
[1730485974310,0.01335147,69536.0,69535.0,0.15403533]
[1730485974981,0.01335147,69536.0,69535.0,0.15603533]
[1730485975427,0.01335147,69536.0,69535.0,0.15703533]
[1730485975676,0.15716147,69536.0,69535.0,0.15703533]
[1730485975889,0.01335147,69536.0,69535.0,0.15703533]
[1730485976539,0.01335603,69536.0,69535.0,0.15703533]
[1730485976756,0.01335603,69536.0,69535.0,0.32384733]
[1730485976963,0.143793,69545.0,69536.0,0.023]
[1730485977174,0.01335772,69543.0,69538.0,0.13845525]
[1730485977386,0.01335752,69542.0,69538.0,0.13845525]
[1730485977600,0.01335752,69541.0,69538.0,0.13845525]
[1730485977812,0.01335752,69540.0,69538.0,0.23300649]
[1730485978041,0.01335752,69539.0,69538.0,0.25600649]
[1730485978249,0.01335752,69542.0,69538.0,0.25600649]
[1730485978475,0.01335752,69541.0,69538.0,0.16145525]
[1730485978694,0.143804,69539.0,69538.0,0.13945525]
[1730485978932,0.15716152,69539.0,69538.0,0.13845525]
[1730485979453,0.15916152,69539.0,69538.0,0.13845525]
[1730485979890,0.15916152,69539.0,69538.0,0.14645525]
[1730485980132,0.47443787,69539.0,69538.0,0.008]
[1730485980378,0.143837,69523.0,69522.0,0.21717782]
[1730485980615,0.56077726,69523.0,69522.0,0.21717782]
[1730485980883,0.56077726,69523.0,69522.0,0.001642]
[1730485980884,0.70352494,69523.0,69522.0,0.001642]
[1730485981098,0.66077726,69523.0,69522.0,0.001642]
[1730485981579,0.80495786,69523.0,69522.0,0.001642]
[1730485981822,0.66077726,69523.0,69522.0,0.001642]
[1730485982083,0.66377726,69523.0,69522.0,0.001642]
[1730485982306,0.80764168,69523.0,69522.0,0.001642]
[1730485982545,0.66377726,69523.0,69522.0,0.001642]
[1730485982775,0.66377726,69523.0,69512.0,0.21553582]
[1730485982776,0.143886,69499.0,69498.0,0.21553582]
[1730485982999,0.15724991,69499.0,69498.0,0.21553582]
[1730485983629,0.287778,69498.0,69484.0,0.21553582]
[1730485983792,0.143908,69489.0,69484.0,0.21553582]
[1730485984163,0.01336391,69488.0,69484.0,0.21553582]
[1730485984397,0.01336391,69488.0,69487.0,0.13845525]
[1730485984596,0.143896,69495.0,69488.0,0.023]
[1730485984804,0.01332141,69494.0,69492.0,0.13845525]
[1730485985010,0.15721941,69494.0,69492.0,0.13845525]
[1730485985227,0.143898,69494.0,69492.0,0.13845525]
[1730485985471,0.15721326,69493.0,69492.0,0.16145525]
[1730485985917,0.15721326,69493.0,69492.0,0.13845525]
[1730485986569,0.15721326,69493.0,69492.0,0.15245525]
[1730485987195,0.15721326,69493.0,69492.0,0.13845525]
[1730485987421,0.15721326,69493.0,69492.0,0.15245525]
[1730485987633,0.15821326,69493.0,69492.0,0.15245525]
[1730485988321,0.01431426,69493.0,69492.0,0.15245525]
[1730485988539,0.145899,69493.0,69492.0,0.16645525]
[1730485989351,0.15919733,69493.0,69492.0,0.16645525]
[1730485989792,0.145899,69493.0,69492.0,0.16645525]
[1730485990410,0.15920162,69493.0,69492.0,0.16645525]
[1730485991738,0.01530262,69493.0,69492.0,0.18310078]
[1730485992413,0.002,69493.0,69492.0,0.18310078]
[1730485993054,0.145899,69493.0,69492.0,0.18310078]
[1730485993502,0.002,69493.0,69492.0,0.20610078]
[1730485993759,0.002,69493.0,69492.0,0.35000178]
[1730485994630,0.002,69493.0,69492.0,0.20610078]
[1730485994873,0.002,69493.0,69492.0,0.35000178]
[1730485995087,0.145899,69493.0,69492.0,0.16645525]
[1730485996377,0.002,69493.0,69492.0,0.16645525]
[1730485996598,0.145899,69493.0,69492.0,0.16645525]
[1730485998989,0.002,69493.0,69492.0,0.21904546]
[1730486000560,0.145899,69493.0,69492.0,0.22068746]
[1730486001005,0.002,69493.0,69492.0,0.22068746]
[1730486001229,0.143873,69506.0,69499.0,0.143886]
[1730486001475,0.143873,69506.0,69502.0,0.13845525]
[1730486001704,0.01330556,69505.0,69503.0,0.02823383]
[1730486001933,0.01330556,69505.0,69504.0,0.13845525]
[1730486002150,0.15717956,69505.0,69504.0,0.13845525]
[1730486003072,0.15717956,69505.0,69504.0,0.14445525]
[1730486003305,0.15817956,69505.0,69504.0,0.16872416]
[1730486008175,0.15821662,69505.0,69504.0,0.16872416]
[1730486008856,0.15821662,69505.0,69504.0,0.15145525]
[1730486010243,0.43101662,69505.0,69504.0,0.15145525]
[1730486010716,0.43105295,69505.0,69504.0,0.013]
[1730486011850,0.43105307,69505.0,69504.0,0.013]
[1730486014775,0.28717907,69505.0,69504.0,0.013]
[1730486015011,0.43105031,69505.0,69504.0,0.013]
[1730486019493,0.417674,69505.0,69504.0,0.013]
[1730486019712,0.43105759,69505.0,69504.0,0.013]
[1730486023535,0.417674,69505.0,69504.0,0.013]
[1730486023773,0.44443967,69505.0,69504.0,0.013]
[1730486024001,0.15825655,69505.0,69504.0,0.15145525]
[1730486024649,0.2008889,69505.0,69504.0,0.15145525]
[1730486025102,0.2017109,69505.0,69504.0,0.15145525]
[1730486025768,0.30333616,69505.0,69504.0,0.013]
[1730486026652,0.38860087,69505.0,69504.0,0.013]
[1730486027106,0.30333616,69505.0,69504.0,0.013]
[1730486027350,0.30333616,69505.0,69493.0,0.001644]
[1730486027351,0.508997,69494.0,69493.0,0.001644]
[1730486027602,0.78733096,69494.0,69493.0,0.001644]
[1730486027815,0.78733096,69494.0,69492.0,0.001642]
[1730486027816,0.319299,69493.0,69492.0,0.001642]
[1730486028044,0.5215201,69493.0,69492.0,0.001642]
[1730486028296,0.5215201,69493.0,69472.0,0.21553582]
[1730486028297,0.143936,69475.0,69472.0,0.21553582]
[1730486028536,0.3913949,69475.0,69474.0,0.14008325]
[1730486028755,0.3913949,69475.0,69474.0,0.001628]
[1730486028756,0.45554768,69475.0,69474.0,0.001628]
[1730486028973,0.3913949,69475.0,69474.0,0.001628]
[1730486029194,0.45554768,69475.0,69474.0,0.001628]
[1730486029483,0.3913949,69475.0,69474.0,0.001628]
[1730486029690,0.43413219,69475.0,69474.0,0.001628]
[1730486029907,0.3913949,69475.0,69474.0,0.001628]
[1730486030116,0.25731855,69475.0,69474.0,0.001628]
[1730486030337,0.26031855,69475.0,69474.0,0.001628]
[1730486030981,0.248936,69475.0,69474.0,0.002628]
[1730486031201,0.257936,69475.0,69474.0,0.002628]
[1730486031650,0.257936,69475.0,69474.0,0.003628]
[1730486031651,0.41934368,69475.0,69474.0,0.003628]
[1730486032547,0.28526733,69475.0,69474.0,0.14208325]
[1730486033005,0.40601235,69475.0,69474.0,0.003628]